[Event "Early-Titled-Tuesday-Blitz-October-10-2023"]
[Site "Chess.com"]
[Date "2023.10.10"]
[Round "1"]
[White "hawes33"]
[Black "Iskusnyh"]
[Result "1/2-1/2"]
[WhiteElo "2283"]
[BlackElo "2589"]
[TimeControl "180+1"]
[EndTime "8:06:25 PDT"]
[Termination "Game drawn - insufficient material"]

1. e4 {[%clk 0:02:59.9]} 1... e6 {[%clk 0:02:51.8]} 2. d4 {[%clk 0:02:58.8]}
2... d5 {[%clk 0:02:49]} 3. Nc3 {[%clk 0:02:59.1]} 3... Nf6 {[%clk 0:02:44.2]}
4. Bg5 {[%clk 0:02:56.6]} 4... dxe4 {[%clk 0:02:41.2]} 5. Nxe4 {[%clk
0:02:55.2]} 5... Nbd7 {[%clk 0:02:40]} 6. Bd3 {[%clk 0:02:54.1]} 6... Be7 {[%clk
0:02:31.2]} 7. Nxf6+ {[%clk 0:02:51.2]} 7... Bxf6 {[%clk 0:02:30.2]} 8. Bxf6
{[%clk 0:02:50.2]} 8... Qxf6 {[%clk 0:02:29.3]} 9. Nf3 {[%clk 0:02:50.4]} 9...
c5 {[%clk 0:02:28.9]} 10. dxc5 {[%clk 0:02:47.5]} 10... Nxc5 {[%clk 0:02:20.8]}
11. Bb5+ {[%clk 0:02:45.1]} 11... Ke7 {[%clk 0:02:09.5]} 12. c3 {[%clk
0:02:40.8]} 12... Rd8 {[%clk 0:02:07.9]} 13. Qe2 {[%clk 0:02:27.4]} 13... a6
{[%clk 0:02:06.6]} 14. Qe3 {[%clk 0:02:27.7]} 14... b6 {[%clk 0:01:45.8]} 15.
Be2 {[%clk 0:02:22.9]} 15... Bb7 {[%clk 0:01:43.7]} 16. O-O {[%clk 0:02:20.6]}
16... Rd5 {[%clk 0:01:34.9]} 17. Rfd1 {[%clk 0:02:16.4]} 17... Rad8 {[%clk
0:01:33.6]} 18. Rxd5 {[%clk 0:02:15.9]} 18... Rxd5 {[%clk 0:01:33.7]} 19. b4
{[%clk 0:02:11.1]} 19... Na4 {[%clk 0:01:27]} 20. Rd1 {[%clk 0:02:07]} 20...
Qxc3 {[%clk 0:01:21.2]} 21. Rxd5 {[%clk 0:02:01]} 21... Qxe3 {[%clk 0:01:18.8]}
22. fxe3 {[%clk 0:02:00.4]} 22... Bxd5 {[%clk 0:01:13.7]} 23. Bxa6 {[%clk
0:01:59.7]} 23... Bxa2 {[%clk 0:01:13.1]} 24. Nd4 {[%clk 0:01:59.2]} 24... Bd5
{[%clk 0:01:11.1]} 25. Bd3 {[%clk 0:01:54.5]} 25... g6 {[%clk 0:01:08.8]} 26.
Kf2 {[%clk 0:01:54]} 26... Nc3 {[%clk 0:01:05.9]} 27. g3 {[%clk 0:01:38.5]}
27... e5 {[%clk 0:01:05]} 28. Ne2 {[%clk 0:01:30.6]} 28... Nd1+ {[%clk
0:01:00.6]} 29. Ke1 {[%clk 0:01:26.4]} 29... Nxe3 {[%clk 0:01:00.3]} 30. Kd2
{[%clk 0:01:26.6]} 30... Nf1+ {[%clk 0:00:58.4]} 31. Kc3 {[%clk 0:01:25.3]}
31... Nxh2 {[%clk 0:00:57.9]} 32. Kd2 {[%clk 0:01:18.8]} 32... Nf3+ {[%clk
0:00:55.7]} 33. Ke3 {[%clk 0:01:18.8]} 33... Ng5 {[%clk 0:00:52.1]} 34. Nc3
{[%clk 0:01:18.5]} 34... Bc6 {[%clk 0:00:51]} 35. b5 {[%clk 0:01:18.7]} 35...
Bd7 {[%clk 0:00:46]} 36. Nd5+ {[%clk 0:01:18.8]} 36... Kd6 {[%clk 0:00:44.6]}
37. Nxb6 {[%clk 0:01:19.2]} 37... Kc5 {[%clk 0:00:42.6]} 38. Nxd7+ {[%clk
0:01:18.7]} 38... Kd6 {[%clk 0:00:42.2]} 39. Nf6 {[%clk 0:01:15.8]} 39... h5
{[%clk 0:00:37.2]} 40. Ne4+ {[%clk 0:01:15.4]} 40... Nxe4 {[%clk 0:00:36.6]} 41.
Kxe4 {[%clk 0:01:16.3]} 41... f5+ {[%clk 0:00:36.5]} 42. Ke3 {[%clk 0:01:16.5]}
42... Kc5 {[%clk 0:00:36]} 43. Be2 {[%clk 0:01:14.6]} 43... g5 {[%clk
0:00:33.5]} 44. Bxh5 {[%clk 0:01:13.1]} 44... f4+ {[%clk 0:00:33.6]} 45. gxf4
{[%clk 0:01:12.4]} 45... exf4+ {[%clk 0:00:33.6]} 46. Kf3 {[%clk 0:01:13]} 46...
Kxb5 {[%clk 0:00:33.5]} 47. Bg6 {[%clk 0:01:12.5]} 47... Kc5 {[%clk 0:00:33.2]}
48. Kg4 {[%clk 0:01:12.2]} 48... Kd4 {[%clk 0:00:33.5]} 49. Kxg5 {[%clk
0:01:10.8]} 49... f3 {[%clk 0:00:33.7]} 50. Bh5 {[%clk 0:01:10.2]} 50... Ke3
{[%clk 0:00:31.9]} 51. Bxf3 {[%clk 0:01:10.1]} 1/2-1/2

[Event "Early-Titled-Tuesday-Blitz-October-10-2023"]
[Site "Chess.com"]
[Date "2023.10.10"]
[Round "1"]
[White "Ariadna_Atreides"]
[Black "JSlaby"]
[Result "0-1"]
[WhiteElo "2196"]
[BlackElo "2576"]
[TimeControl "180+1"]
[EndTime "8:06:26 PDT"]
[Termination "JSlaby won on time"]

1. d4 {[%clk 0:03:00.9]} 1... Nf6 {[%clk 0:02:53.7]} 2. Nf3 {[%clk 0:02:58.5]}
2... d6 {[%clk 0:02:49]} 3. b3 {[%clk 0:02:53]} 3... g6 {[%clk 0:02:48.3]} 4.
Bb2 {[%clk 0:02:52.7]} 4... Bg7 {[%clk 0:02:48.4]} 5. e3 {[%clk 0:02:49.6]} 5...
O-O {[%clk 0:02:47.7]} 6. Be2 {[%clk 0:02:47.7]} 6... c5 {[%clk 0:02:47]} 7. O-O
{[%clk 0:02:45.9]} 7... Nc6 {[%clk 0:02:46.1]} 8. d5 {[%clk 0:02:37.6]} 8... Nb4
{[%clk 0:02:39]} 9. c4 {[%clk 0:02:37.1]} 9... e6 {[%clk 0:02:30.7]} 10. a3
{[%clk 0:02:36.2]} 10... Na6 {[%clk 0:02:29.9]} 11. dxe6 {[%clk 0:02:15.5]}
11... Bxe6 {[%clk 0:02:30.8]} 12. Nc3 {[%clk 0:02:11.2]} 12... Nc7 {[%clk
0:02:28.2]} 13. Qc2 {[%clk 0:02:08.7]} 13... d5 {[%clk 0:02:26.1]} 14. Rfd1
{[%clk 0:01:58.6]} 14... Qe7 {[%clk 0:02:21.9]} 15. cxd5 {[%clk 0:01:50.7]}
15... Ncxd5 {[%clk 0:02:21.7]} 16. Nxd5 {[%clk 0:01:50.8]} 16... Nxd5 {[%clk
0:02:20.4]} 17. Bxg7 {[%clk 0:01:50.4]} 17... Kxg7 {[%clk 0:02:21.3]} 18. Rac1
{[%clk 0:01:44.7]} 18... Rac8 {[%clk 0:02:20.5]} 19. Bc4 {[%clk 0:01:42.3]}
19... Rfd8 {[%clk 0:02:19.5]} 20. Qb2+ {[%clk 0:01:33.9]} 20... Qf6 {[%clk
0:02:17.5]} 21. Qxf6+ {[%clk 0:01:32]} 21... Kxf6 {[%clk 0:02:18.4]} 22. h4
{[%clk 0:01:23.8]} 22... h6 {[%clk 0:02:16.9]} 23. g3 {[%clk 0:01:12.9]} 23...
b6 {[%clk 0:02:16.4]} 24. Kg2 {[%clk 0:01:11.6]} 24... Nc7 {[%clk 0:02:00.4]}
25. Nd2 {[%clk 0:00:33.3]} 25... Ke7 {[%clk 0:01:56.8]} 26. e4 {[%clk
0:00:26.2]} 26... h5 {[%clk 0:01:53]} 27. f4 {[%clk 0:00:15.8]} 27... Bxc4
{[%clk 0:01:52.4]} 28. Nxc4 {[%clk 0:00:15.2]} 28... Ne6 {[%clk 0:01:52.8]} 29.
Ne3 {[%clk 0:00:13.2]} 29... Nd4 {[%clk 0:01:52.2]} 30. Nd5+ {[%clk 0:00:12.9]}
30... Kd6 {[%clk 0:01:37]} 31. b4 {[%clk 0:00:12.2]} 31... f5 {[%clk 0:01:35.3]}
32. bxc5+ {[%clk 0:00:11.7]} 32... bxc5 {[%clk 0:01:31.5]} 33. Nc3 {[%clk
0:00:12.1]} 33... Ke6 {[%clk 0:01:28.4]} 34. exf5+ {[%clk 0:00:06.8]} 34... gxf5
{[%clk 0:01:27.5]} 35. Re1+ {[%clk 0:00:06.1]} 35... Kf6 {[%clk 0:01:27.9]} 36.
Kf2 {[%clk 0:00:05.1]} 36... Rb8 {[%clk 0:01:27.1]} 37. Rb1 {[%clk 0:00:04.4]}
37... c4 {[%clk 0:01:24.6]} 38. Rxb8 {[%clk 0:00:03.5]} 38... Rxb8 {[%clk
0:01:25.5]} 39. Nd5+ {[%clk 0:00:03.9]} 39... Kf7 {[%clk 0:01:23.8]} 40. Re7+
{[%clk 0:00:02.1]} 40... Kf8 {[%clk 0:01:24.1]} 41. Rxa7 {[%clk 0:00:02]} 41...
Rc8 {[%clk 0:01:21.1]} 42. Ke3 {[%clk 0:00:01.6]} 42... Nb5 {[%clk 0:01:15.2]}
0-1

[Event "Early-Titled-Tuesday-Blitz-October-10-2023"]
[Site "Chess.com"]
[Date "2023.10.10"]
[Round "1"]
[White "Flaccidmoves"]
[Black "Elprofessor21"]
[Result "0-1"]
[WhiteElo "2446"]
[BlackElo "2777"]
[TimeControl "180+1"]
[EndTime "8:06:28 PDT"]
[Termination "Elprofessor21 won by resignation"]

1. c4 {[%clk 0:03:00.4]} 1... d6 {[%clk 0:02:54.8]} 2. Nc3 {[%clk 0:02:58.3]}
2... c5 {[%clk 0:02:37.8]} 3. g3 {[%clk 0:02:56.8]} 3... Nc6 {[%clk 0:02:35.2]}
4. Bg2 {[%clk 0:02:56.7]} 4... Nf6 {[%clk 0:02:35.5]} 5. Nf3 {[%clk 0:02:56.3]}
5... e5 {[%clk 0:02:32.7]} 6. O-O {[%clk 0:02:51.1]} 6... Be7 {[%clk 0:02:33.3]}
7. d3 {[%clk 0:02:48]} 7... O-O {[%clk 0:02:33.5]} 8. a3 {[%clk 0:02:41]} 8...
a6 {[%clk 0:02:28.5]} 9. Rb1 {[%clk 0:02:38.4]} 9... Rb8 {[%clk 0:02:28.3]} 10.
b4 {[%clk 0:02:29.6]} 10... cxb4 {[%clk 0:02:28.2]} 11. axb4 {[%clk 0:02:30.5]}
11... b5 {[%clk 0:02:28.6]} 12. cxb5 {[%clk 0:02:31.1]} 12... axb5 {[%clk
0:02:29.4]} 13. Bg5 {[%clk 0:01:13.5]} 13... Be6 {[%clk 0:02:22.9]} 14. Nd2
{[%clk 0:00:58.1]} 14... d5 {[%clk 0:02:19.8]} 15. Bxf6 {[%clk 0:00:55.9]} 15...
Bxf6 {[%clk 0:02:19.1]} 16. e4 {[%clk 0:00:56]} 16... dxe4 {[%clk 0:01:37]} 17.
dxe4 {[%clk 0:00:55.3]} 17... Nd4 {[%clk 0:01:30.1]} 18. Nd5 {[%clk 0:00:54.4]}
18... g6 {[%clk 0:01:18.1]} 19. Nb3 {[%clk 0:00:47.4]} 19... Bg7 {[%clk
0:01:08.5]} 20. Nxd4 {[%clk 0:00:32.9]} 20... exd4 {[%clk 0:01:09.4]} 21. Nf4
{[%clk 0:00:33.4]} 21... Bc4 {[%clk 0:01:08.8]} 22. Nd3 {[%clk 0:00:32]} 22...
Kh8 {[%clk 0:01:07.9]} 23. Re1 {[%clk 0:00:31.4]} 23... f5 {[%clk 0:01:02.6]}
24. exf5 {[%clk 0:00:30.6]} 24... Rxf5 {[%clk 0:01:03.5]} 25. Rb2 {[%clk
0:00:25.4]} 25... Qf8 {[%clk 0:00:57.9]} 26. f4 {[%clk 0:00:21.8]} 26... Rd8
{[%clk 0:00:41.7]} 27. Rbe2 {[%clk 0:00:21.2]} 27... Bxd3 {[%clk 0:00:39.6]} 28.
Qxd3 {[%clk 0:00:22.1]} 28... Qxb4 {[%clk 0:00:39.5]} 29. Re8+ {[%clk 0:00:22]}
29... Rf8 {[%clk 0:00:39.1]} 30. Rxd8 {[%clk 0:00:18]} 30... Qxe1+ {[%clk
0:00:38.7]} 0-1

[Event "Early-Titled-Tuesday-Blitz-October-10-2023"]
[Site "Chess.com"]
[Date "2023.10.10"]
[Round "1"]
[White "crosky"]
[Black "Hilary46"]
[Result "0-1"]
[WhiteElo "2372"]
[BlackElo "2659"]
[TimeControl "180+1"]
[EndTime "8:06:31 PDT"]
[Termination "Hilary46 won by resignation"]

1. c4 {[%clk 0:02:59.7]} 1... e6 {[%clk 0:02:47.9]} 2. Nc3 {[%clk 0:02:59.4]}
2... d5 {[%clk 0:02:48]} 3. d4 {[%clk 0:02:59.5]} 3... c6 {[%clk 0:02:43.2]} 4.
e3 {[%clk 0:02:59.3]} 4... Nf6 {[%clk 0:02:41.8]} 5. Nf3 {[%clk 0:02:59.3]} 5...
Nbd7 {[%clk 0:02:42]} 6. Qc2 {[%clk 0:02:59.5]} 6... Bd6 {[%clk 0:02:41.4]} 7.
g4 {[%clk 0:03:00]} 7... Bb4 {[%clk 0:02:30.7]} 8. Bd2 {[%clk 0:02:55.1]} 8...
O-O {[%clk 0:02:26.9]} 9. g5 {[%clk 0:02:53.2]} 9... Bxc3 {[%clk 0:02:26.8]} 10.
Bxc3 {[%clk 0:02:49.4]} 10... Ne4 {[%clk 0:02:27.3]} 11. Bd3 {[%clk 0:02:43.2]}
11... f5 {[%clk 0:02:20.8]} 12. gxf6 {[%clk 0:02:36.2]} 12... Qxf6 {[%clk
0:01:50.7]} 13. Bxe4 {[%clk 0:02:04.4]} 13... dxe4 {[%clk 0:01:51.6]} 14. Ne5
{[%clk 0:02:04.9]} 14... Nxe5 {[%clk 0:01:47.6]} 15. dxe5 {[%clk 0:02:05]} 15...
Qf3 {[%clk 0:01:48]} 16. Rg1 {[%clk 0:02:00.9]} 16... Bd7 {[%clk 0:01:48.7]} 17.
Qe2 {[%clk 0:01:49.7]} 17... Qxe2+ {[%clk 0:01:48.4]} 18. Kxe2 {[%clk
0:01:49.8]} 18... Be8 {[%clk 0:01:49.3]} 19. Bb4 {[%clk 0:01:33.2]} 19... Bh5+
{[%clk 0:01:49.4]} 20. Ke1 {[%clk 0:01:33.8]} 20... Rf5 {[%clk 0:01:48.8]} 21.
Bd6 {[%clk 0:01:33.1]} 21... Rd8 {[%clk 0:01:46.4]} 22. c5 {[%clk 0:01:32.6]}
22... Rd7 {[%clk 0:01:46.7]} 23. b4 {[%clk 0:01:32.6]} 23... Rdf7 {[%clk
0:01:47.1]} 24. Rg2 {[%clk 0:01:28.8]} 24... Bf3 {[%clk 0:01:47.7]} 25. Rg3
{[%clk 0:01:29]} 25... Rh5 {[%clk 0:01:47.6]} 26. h3 {[%clk 0:01:25.3]} 26...
Rff5 {[%clk 0:01:45.9]} 27. Kd2 {[%clk 0:01:24.3]} 27... Rfg5 {[%clk 0:01:45.9]}
28. Rag1 {[%clk 0:01:22.5]} 28... Rxg3 {[%clk 0:01:46.2]} 29. Rxg3 {[%clk
0:01:23.4]} 29... Rf5 {[%clk 0:01:46]} 30. a4 {[%clk 0:01:16]} 30... a6 {[%clk
0:01:46.2]} 31. a5 {[%clk 0:01:13.7]} 31... Kf7 {[%clk 0:01:46.5]} 32. Rg1
{[%clk 0:01:06.6]} 32... g5 {[%clk 0:01:45.3]} 33. Rg3 {[%clk 0:01:00]} 33... h5
{[%clk 0:01:45.6]} 34. Ke1 {[%clk 0:00:43.1]} 34... h4 {[%clk 0:01:42.3]} 35.
Rg1 {[%clk 0:00:43.5]} 35... Kg6 {[%clk 0:01:42.9]} 36. Kd2 {[%clk 0:00:40.7]}
36... Kh5 {[%clk 0:01:43.2]} 37. Be7 {[%clk 0:00:40]} 37... g4 {[%clk
0:01:43.3]} 38. hxg4+ {[%clk 0:00:39.5]} 38... Bxg4 {[%clk 0:01:44.2]} 39. Rh1
{[%clk 0:00:31.4]} 39... h3 {[%clk 0:01:31]} 40. Ke1 {[%clk 0:00:26.9]} 40...
Rxe5 {[%clk 0:01:31.2]} 41. f4 {[%clk 0:00:24.4]} 41... exf3 {[%clk 0:01:27.6]}
42. Kf2 {[%clk 0:00:25]} 42... Rd5 {[%clk 0:01:26.6]} 43. Kg3 {[%clk 0:00:24.2]}
43... Rd2 {[%clk 0:01:25.2]} 44. Kf4 {[%clk 0:00:20.4]} 44... Rg2 {[%clk
0:01:20.4]} 45. e4 {[%clk 0:00:03.1]} 45... f2 {[%clk 0:01:19.8]} 46. Bg5 {[%clk
0:00:02.1]} 46... Rg1 {[%clk 0:01:17.6]} 47. Rxh3+ {[%clk 0:00:01.3]} 47... Bxh3
{[%clk 0:01:17.2]} 0-1

[Event "Early-Titled-Tuesday-Blitz-October-10-2023"]
[Site "Chess.com"]
[Date "2023.10.10"]
[Round "1"]
[White "subham777"]
[Black "shimastream"]
[Result "0-1"]
[WhiteElo "2510"]
[BlackElo "2977"]
[TimeControl "180+1"]
[EndTime "8:06:34 PDT"]
[Termination "shimastream won by resignation"]

1. e4 {[%clk 0:02:59.4]} 1... e5 {[%clk 0:02:59.7]} 2. Nf3 {[%clk 0:02:58.8]}
2... Qe7 {[%clk 0:02:59.9]} 3. Nc3 {[%clk 0:02:56.5]} 3... c6 {[%clk 0:02:59.8]}
4. Be2 {[%clk 0:02:53.8]} 4... Nf6 {[%clk 0:02:59.4]} 5. O-O {[%clk 0:02:53.6]}
5... d6 {[%clk 0:02:57.7]} 6. Re1 {[%clk 0:02:52.1]} 6... h6 {[%clk 0:02:56]} 7.
d4 {[%clk 0:02:52.1]} 7... g5 {[%clk 0:02:53.8]} 8. Be3 {[%clk 0:02:39.8]} 8...
Bg7 {[%clk 0:02:51.4]} 9. h3 {[%clk 0:01:57]} 9... Nbd7 {[%clk 0:02:43.9]} 10.
Qd2 {[%clk 0:01:53.9]} 10... Nf8 {[%clk 0:02:36.7]} 11. Rad1 {[%clk 0:01:49.5]}
11... Ng6 {[%clk 0:02:36.6]} 12. dxe5 {[%clk 0:01:48.2]} 12... dxe5 {[%clk
0:02:37.5]} 13. Bc5 {[%clk 0:01:45.5]} 13... Qc7 {[%clk 0:02:26.5]} 14. Bd6
{[%clk 0:01:43.8]} 14... Qb6 {[%clk 0:02:25.5]} 15. Bc5 {[%clk 0:01:33.5]} 15...
Qc7 {[%clk 0:02:24.4]} 16. Bd6 {[%clk 0:01:31.2]} 16... Qd8 {[%clk 0:02:23.3]}
17. Nxe5 {[%clk 0:01:29.2]} 17... Nxe5 {[%clk 0:02:23]} 18. Bxe5 {[%clk
0:01:29.3]} 18... Qxd2 {[%clk 0:02:23.7]} 19. Rxd2 {[%clk 0:01:29.5]} 19... O-O
{[%clk 0:02:24.6]} 20. Bc4 {[%clk 0:01:16.6]} 20... Re8 {[%clk 0:02:24.4]} 21.
Bh2 {[%clk 0:00:59]} 21... b5 {[%clk 0:02:20.5]} 22. Bb3 {[%clk 0:00:57.9]}
22... a5 {[%clk 0:02:19.7]} 23. a4 {[%clk 0:00:46.8]} 23... b4 {[%clk
0:02:19.4]} 24. Nb1 {[%clk 0:00:42.5]} 24... Nxe4 {[%clk 0:02:12.9]} 25. Rde2
{[%clk 0:00:26.6]} 25... Bf5 {[%clk 0:02:13]} 26. Nd2 {[%clk 0:00:22.7]} 26...
Nf6 {[%clk 0:02:04.6]} 27. Rxe8+ {[%clk 0:00:23.1]} 27... Nxe8 {[%clk
0:02:05.5]} 28. Re7 {[%clk 0:00:19.4]} 28... Bg6 {[%clk 0:02:02.6]} 29. Nf3
{[%clk 0:00:15.6]} 29... Kf8 {[%clk 0:01:57]} 30. Rb7 {[%clk 0:00:14.2]} 30...
Rd8 {[%clk 0:01:56.6]} 31. Be5 {[%clk 0:00:13.2]} 31... Nf6 {[%clk 0:01:48.8]}
32. Bc7 {[%clk 0:00:08.9]} 32... Rd1+ {[%clk 0:01:48.1]} 33. Kh2 {[%clk
0:00:09.3]} 33... Ne4 {[%clk 0:01:47.6]} 34. Bxa5 {[%clk 0:00:07.6]} 34... Nxf2
{[%clk 0:01:45.1]} 35. Rb8+ {[%clk 0:00:07.9]} 35... Ke7 {[%clk 0:01:44.9]} 36.
Bxb4+ {[%clk 0:00:08.3]} 36... Kd7 {[%clk 0:01:45]} 37. Rb7+ {[%clk 0:00:05.3]}
37... Kc8 {[%clk 0:01:44.8]} 38. Re7 {[%clk 0:00:05.9]} 38... Rh1+ {[%clk
0:01:40.5]} 39. Kg3 {[%clk 0:00:05.6]} 39... Ne4+ {[%clk 0:01:41.2]} 40. Rxe4
{[%clk 0:00:04.3]} 40... Bxe4 {[%clk 0:01:42.1]} 41. Bxf7 {[%clk 0:00:04.6]}
41... Bxc2 {[%clk 0:01:41.1]} 42. a5 {[%clk 0:00:04.8]} 42... Bd3 {[%clk
0:01:40.2]} 43. Be6+ {[%clk 0:00:03.4]} 43... Kb7 {[%clk 0:01:40.4]} 44. Bc3
{[%clk 0:00:02.7]} 44... Bxc3 {[%clk 0:01:36.8]} 45. bxc3 {[%clk 0:00:03.6]}
45... Rc1 {[%clk 0:01:37.3]} 46. Ne5 {[%clk 0:00:03.9]} 46... Rxc3 {[%clk
0:01:37.5]} 47. Nxd3 {[%clk 0:00:03.2]} 47... Rxd3+ {[%clk 0:01:37.9]} 48. Kg4
{[%clk 0:00:04]} 48... Rd6 {[%clk 0:01:37.7]} 49. Bf7 {[%clk 0:00:03.4]} 49...
c5 {[%clk 0:01:37.1]} 50. Kf5 {[%clk 0:00:02.7]} 50... Ka6 {[%clk 0:01:36.6]}
51. Bc4+ {[%clk 0:00:02.3]} 51... Kxa5 {[%clk 0:01:36.5]} 52. g3 {[%clk
0:00:02.2]} 0-1

[Event "Early-Titled-Tuesday-Blitz-October-10-2023"]
[Site "Chess.com"]
[Date "2023.10.10"]
[Round "1"]
[White "a-z30"]
[Black "Fandorine"]
[Result "0-1"]
[WhiteElo "2503"]
[BlackElo "2929"]
[TimeControl "180+1"]
[EndTime "8:06:34 PDT"]
[Termination "Fandorine won by resignation"]

1. d3 {[%clk 0:03:00.9]} 1... g6 {[%clk 0:02:57.6]} 2. Nf3 {[%clk 0:03:01.8]}
2... Bg7 {[%clk 0:02:57.8]} 3. g3 {[%clk 0:03:02.7]} 3... d6 {[%clk 0:02:58.3]}
4. Bg2 {[%clk 0:03:03.4]} 4... c5 {[%clk 0:02:58.6]} 5. O-O {[%clk 0:03:04]}
5... Nc6 {[%clk 0:02:59.3]} 6. c4 {[%clk 0:03:04.2]} 6... Nf6 {[%clk 0:02:58.7]}
7. Nc3 {[%clk 0:03:04.7]} 7... O-O {[%clk 0:02:59.3]} 8. Qd2 {[%clk 0:03:03.4]}
8... b6 {[%clk 0:02:56.7]} 9. b3 {[%clk 0:03:03.5]} 9... Bb7 {[%clk 0:02:56.7]}
10. Bb2 {[%clk 0:03:03.8]} 10... a6 {[%clk 0:02:52.6]} 11. e3 {[%clk 0:03:03.9]}
11... Rc8 {[%clk 0:02:47.7]} 12. Rfd1 {[%clk 0:03:03.7]} 12... e6 {[%clk
0:02:46.1]} 13. d4 {[%clk 0:02:46.8]} 13... Qe7 {[%clk 0:02:33.7]} 14. d5 {[%clk
0:02:16.9]} 14... exd5 {[%clk 0:02:26.5]} 15. Nxd5 {[%clk 0:02:16.2]} 15... Nxd5
{[%clk 0:02:13.2]} 16. Bxg7 {[%clk 0:02:15.9]} 16... Kxg7 {[%clk 0:02:11.8]} 17.
cxd5 {[%clk 0:02:04.4]} 17... Nb8 {[%clk 0:02:05.1]} 18. Qc3+ {[%clk 0:01:49]}
18... Kg8 {[%clk 0:01:55.7]} 19. Nd2 {[%clk 0:01:48.2]} 19... Nd7 {[%clk
0:01:53.5]} 20. e4 {[%clk 0:01:34.2]} 20... b5 {[%clk 0:01:48.3]} 21. a4 {[%clk
0:01:31.6]} 21... b4 {[%clk 0:01:48.1]} 22. Qb2 {[%clk 0:01:30.6]} 22... a5
{[%clk 0:01:47.7]} 23. Nc4 {[%clk 0:01:29.8]} 23... Ra8 {[%clk 0:01:46.8]} 24.
Bh3 {[%clk 0:00:48.9]} 24... Nf6 {[%clk 0:01:26.5]} 25. Nxd6 {[%clk 0:00:38.5]}
25... Nxe4 {[%clk 0:01:09.6]} 26. Nxe4 {[%clk 0:00:39.4]} 26... Qxe4 {[%clk
0:01:09.5]} 27. Bg2 {[%clk 0:00:36.1]} 27... Qf5 {[%clk 0:01:07.6]} 28. Rac1
{[%clk 0:00:29.7]} 28... Rac8 {[%clk 0:01:06.3]} 29. Qc2 {[%clk 0:00:24.1]}
29... Qxc2 {[%clk 0:00:56.5]} 30. Rxc2 {[%clk 0:00:25]} 30... Rfd8 {[%clk
0:00:54.7]} 31. Rdc1 {[%clk 0:00:23]} 31... Bxd5 {[%clk 0:00:53.4]} 32. Rxc5
{[%clk 0:00:20.7]} 32... Rxc5 {[%clk 0:00:53]} 33. Rxc5 {[%clk 0:00:20.3]} 33...
Bxb3 {[%clk 0:00:53.9]} 34. Bc6 {[%clk 0:00:13.4]} 34... Rc8 {[%clk 0:00:49.6]}
35. f4 {[%clk 0:00:05.8]} 35... Bxa4 {[%clk 0:00:45.4]} 0-1

[Event "Early-Titled-Tuesday-Blitz-October-10-2023"]
[Site "Chess.com"]
[Date "2023.10.10"]
[Round "1"]
[White "HajiyevKanan"]
[Black "AleksandrAleksikov"]
[Result "1-0"]
[WhiteElo "2577"]
[BlackElo "2210"]
[TimeControl "180+1"]
[EndTime "8:06:37 PDT"]
[Termination "HajiyevKanan won on time"]

1. d4 {[%clk 0:02:59.7]} 1... Nf6 {[%clk 0:02:59.9]} 2. Nf3 {[%clk 0:02:59.9]}
2... g6 {[%clk 0:03:00.1]} 3. g3 {[%clk 0:02:59.3]} 3... Bg7 {[%clk 0:03:00]} 4.
Bg2 {[%clk 0:03:00.2]} 4... O-O {[%clk 0:02:59.6]} 5. O-O {[%clk 0:03:01.1]}
5... c6 {[%clk 0:02:58.1]} 6. b3 {[%clk 0:03:02]} 6... d5 {[%clk 0:02:57.2]} 7.
Bb2 {[%clk 0:03:02.9]} 7... Bf5 {[%clk 0:02:55.7]} 8. Nbd2 {[%clk 0:03:03.2]}
8... Ne4 {[%clk 0:02:54.6]} 9. c4 {[%clk 0:03:03.9]} 9... Nxd2 {[%clk 0:02:49]}
10. Qxd2 {[%clk 0:03:04.8]} 10... Be4 {[%clk 0:02:48.9]} 11. Rfe1 {[%clk
0:03:04.5]} 11... e6 {[%clk 0:02:48]} 12. Bh3 {[%clk 0:03:03]} 12... h5 {[%clk
0:02:42]} 13. Ng5 {[%clk 0:02:57.3]} 13... Bf5 {[%clk 0:02:40.4]} 14. Bg2 {[%clk
0:02:46.9]} 14... c5 {[%clk 0:02:22.1]} 15. cxd5 {[%clk 0:02:40.2]} 15... exd5
{[%clk 0:02:20.1]} 16. h4 {[%clk 0:02:34]} 16... Nc6 {[%clk 0:01:55.9]} 17. dxc5
{[%clk 0:02:32.5]} 17... Bxb2 {[%clk 0:01:42.5]} 18. Qxb2 {[%clk 0:02:33.4]}
18... d4 {[%clk 0:01:31.2]} 19. Red1 {[%clk 0:02:28.3]} 19... Qa5 {[%clk
0:01:23.3]} 20. Bxc6 {[%clk 0:02:22.8]} 20... bxc6 {[%clk 0:01:21.7]} 21. b4
{[%clk 0:02:23.4]} 21... Qb5 {[%clk 0:01:15.1]} 22. a4 {[%clk 0:02:18.4]} 22...
Qb7 {[%clk 0:01:12.4]} 23. Rxd4 {[%clk 0:02:12]} 23... f6 {[%clk 0:01:01.4]} 24.
Ne4 {[%clk 0:02:07.3]} 24... Bxe4 {[%clk 0:00:57.7]} 25. Rxe4 {[%clk 0:02:07.3]}
25... Qd7 {[%clk 0:00:55.4]} 26. Qd4 {[%clk 0:01:59.2]} 26... Qf5 {[%clk
0:00:48]} 27. Rd1 {[%clk 0:01:50]} 27... Rad8 {[%clk 0:00:43.8]} 28. Qxd8 {[%clk
0:01:50]} 28... Qxe4 {[%clk 0:00:43.8]} 29. Qd3 {[%clk 0:01:38.2]} 29... Re8
{[%clk 0:00:39.5]} 30. Qxe4 {[%clk 0:01:19.4]} 30... Rxe4 {[%clk 0:00:37.9]} 31.
b5 {[%clk 0:01:20]} 31... Rc4 {[%clk 0:00:28.5]} 32. b6 {[%clk 0:01:09.6]} 32...
axb6 {[%clk 0:00:23.8]} 33. cxb6 {[%clk 0:01:10.5]} 33... Rb4 {[%clk 0:00:20.7]}
34. a5 {[%clk 0:01:07.8]} 34... Kf7 {[%clk 0:00:14.9]} 35. Rd7+ {[%clk
0:01:02.2]} 35... Ke6 {[%clk 0:00:14.7]} 36. Ra7 {[%clk 0:01:02.7]} 36... c5
{[%clk 0:00:10.7]} 37. b7 {[%clk 0:01:03.1]} 37... c4 {[%clk 0:00:10.1]} 38.
Ra6+ {[%clk 0:01:03.4]} 38... Kd5 {[%clk 0:00:02.8]} 39. Rb6 {[%clk 0:01:03.6]}
39... c3 {[%clk 0:00:01.4]} 40. b8=Q {[%clk 0:01:01]} 1-0